[Event "MČR juniorů a juniorek v rapid šachu 2024"]
[Site "Hotel Fit Fun, Harrachov, Czech Republic"]
[Date "2024.09.21"]
[Round "6.11"]
[White "Sadil Antonin"]
[Black "Juhanak Daniel"]
[Result "1/2-1/2"]
[TimeControl "20+5"]
[WhiteFideId "23735597"]
[BlackFideId "23718765"]
[WhiteElo "1784"]
[BlackElo "1982"]

1. e4 {[%clk 00:20:08]} {[%emt 00:00:01]} e6 {[%clk 00:20:09]} {[%emt
00:00:01]} 2. d4 {[%clk 00:20:11]} {[%emt 00:00:02]} d5 {[%clk 00:20:13]} 3.
exd5 {[%clk 00:20:09]} {[%emt 00:00:07]} exd5 {[%clk 00:20:18]} 4. Bd3 {[%clk
00:20:08]} {[%emt 00:00:06]} Nf6 {[%clk 00:20:21]} {[%emt 00:00:01]} 5. Nf3
{[%clk 00:20:00]} {[%emt 00:00:13]} c5 {[%clk 00:20:25]} {[%emt 00:00:01]} 6.
dxc5 {[%clk 00:19:28]} {[%emt 00:00:37]} Bxc5 {[%clk 00:20:28]} {[%emt
00:00:01]} 7. O-O {[%clk 00:19:10]} {[%emt 00:00:24]} O-O {[%clk 00:20:31]}
{[%emt 00:00:02]} 8. Nc3 {[%clk 00:18:48]} {[%emt 00:00:27]} h6 {[%clk
00:20:11]} {[%emt 00:00:25]} 9. h3 {[%clk 00:18:49]} {[%emt 00:00:05]} Nc6
{[%clk 00:20:14]} 10. a3 {[%clk 00:18:16]} {[%emt 00:00:38]} Re8 {[%clk
00:18:26]} {[%emt 00:01:53]} 11. Re1 {[%clk 00:16:50]} {[%emt 00:01:30]} Rxe1+
{[%clk 00:18:09]} {[%emt 00:00:23]} 12. Qxe1 {[%clk 00:16:36]} {[%emt
00:00:20]} Be6 {[%clk 00:17:48]} {[%emt 00:00:25]} 13. Bf4 {[%clk 00:16:04]}
{[%emt 00:00:36]} Qe7 {[%clk 00:16:06]} {[%emt 00:01:48]} 14. Rd1 {[%clk
00:14:55]} {[%emt 00:01:14]} Re8 {[%clk 00:16:06]} {[%emt 00:00:05]} 15. Qd2
{[%clk 00:14:21]} {[%emt 00:00:38]} Qf8 {[%clk 00:14:02]} {[%emt 00:02:10]} 16.
Ne5 {[%clk 00:12:35]} {[%emt 00:01:50]} Bd6 {[%clk 00:13:32]} {[%emt 00:00:37]}
17. Nxc6 {[%clk 00:11:35]} {[%emt 00:01:04]} bxc6 {[%clk 00:13:35]} 18. Bxd6
{[%clk 00:11:38]} {[%emt 00:00:03]} Qxd6 {[%clk 00:13:37]} {[%emt 00:00:03]} 19.
Re1 {[%clk 00:11:05]} {[%emt 00:00:37]} Rb8 {[%clk 00:12:42]} {[%emt 00:01:01]}
20. Nd1 {[%clk 00:10:25]} {[%emt 00:00:45]} c5 {[%clk 00:12:23]} {[%emt
00:00:24]} 21. b3 {[%clk 00:09:48]} {[%emt 00:00:41]} Rd8 {[%clk 00:11:04]}
{[%emt 00:01:22]} 22. a4 {[%clk 00:08:32]} {[%emt 00:01:24]} c4 {[%clk
00:10:04]} {[%emt 00:01:05]} 23. Be2 {[%clk 00:08:22]} {[%emt 00:00:14]} cxb3
{[%clk 00:09:29]} {[%emt 00:00:42]} 24. cxb3 {[%clk 00:08:25]} {[%emt
00:00:02]} Qb6 {[%clk 00:09:01]} {[%emt 00:00:32]} 25. b4 {[%clk 00:07:23]}
{[%emt 00:01:07]} Ne4 {[%clk 00:07:45]} {[%emt 00:01:21]} 26. Qb2 {[%clk
00:06:46]} {[%emt 00:00:42]} Rb8 {[%clk 00:07:35]} {[%emt 00:00:14]} 27. b5
{[%clk 00:06:47]} {[%emt 00:00:05]} Qa5 {[%clk 00:07:29]} {[%emt 00:00:11]} 28.
Rf1 {[%clk 00:06:13]} {[%emt 00:00:39]} Nd2 {[%clk 00:07:01]} {[%emt 00:00:33]}
29. Qe5 {[%clk 00:06:12]} {[%emt 00:00:06]} Rc8 {[%clk 00:06:10]} {[%emt
00:00:58]} 30. Re1 {[%clk 00:05:53]} {[%emt 00:00:23]} Ne4 {[%clk 00:05:54]}
{[%emt 00:00:21]} 31. Kf1 {[%clk 00:05:17]} {[%emt 00:00:40]} Nd2+ {[%clk
00:05:47]} {[%emt 00:00:13]} 32. Kg1 {[%clk 00:05:20]} {[%emt 00:00:02]} Ne4
{[%clk 00:05:51]} {[%emt 00:00:02]} 33. Kf1 {[%clk 00:05:20]} {[%emt 00:00:05]}
Qxa4 {[%clk 00:05:35]} {[%emt 00:00:20]} 34. Bd3 {[%clk 00:04:55]} {[%emt
00:00:29]} Qb3 {[%clk 00:04:35]} {[%emt 00:01:06]} 35. Bxe4 {[%clk 00:04:46]}
{[%emt 00:00:14]} dxe4 {[%clk 00:04:32]} {[%emt 00:00:09]} 36. Kg1 {[%clk
00:03:43]} {[%emt 00:01:07]} Qd5 {[%clk 00:02:37]} {[%emt 00:02:00]} 37. Qxd5
{[%clk 00:03:26]} {[%emt 00:00:22]} Bxd5 {[%clk 00:02:40]} {[%emt 00:00:02]} 38.
Ne3 {[%clk 00:03:29]} {[%emt 00:00:02]} Be6 {[%clk 00:02:12]} {[%emt 00:00:33]}
39. Ra1 {[%clk 00:03:21]} {[%emt 00:00:12]} Rc7 {[%clk 00:02:04]} {[%emt
00:00:14]} 40. Ra6 {[%clk 00:03:01]} {[%emt 00:00:25]} Rb7 {[%clk 00:01:55]}
{[%emt 00:00:15]} 41. Kf1 {[%clk 00:02:15]} {[%emt 00:00:50]} Rxb5 {[%clk
00:01:09]} {[%emt 00:00:51]} 42. Rxa7 {[%clk 00:02:19]} {[%emt 00:00:02]} Rb1+
{[%clk 00:01:13]} {[%emt 00:00:01]} 43. Ke2 {[%clk 00:02:21]} {[%emt 00:00:03]}
Rb2+ {[%clk 00:01:17]} 44. Ke1 {[%emt 00:00:08]} Rb4 {[%clk 00:01:08]} {[%emt
00:00:11]} 45. Ra6 {[%clk 00:01:55]} {[%emt 00:00:31]} g5 {[%clk 00:01:07]}
{[%emt 00:00:07]} 46. Ra5 {[%clk 00:01:10]} {[%emt 00:00:49]} Kg7 {[%clk
00:01:01]} {[%emt 00:00:11]} 47. h4 {[%clk 00:01:04]} {[%emt 00:00:11]} Kg6
{[%clk 00:00:46]} {[%emt 00:00:20]} 48. hxg5 {[%clk 00:01:07]} {[%emt
00:00:02]} hxg5 {[%clk 00:00:51]} {[%emt 00:00:01]} 49. Ke2 {[%clk 00:00:55]}
{[%emt 00:00:16]} Rb2+ {[%clk 00:00:54]} {[%emt 00:00:03]} 50. Ke1 {[%clk
00:00:58]} {[%emt 00:00:02]} Rb1+ {[%clk 00:00:58]} 51. Ke2 {[%clk 00:01:01]}
{[%emt 00:00:02]} Rb2+ {[%clk 00:01:02]} {[%emt 00:00:02]} 52. Ke1 {[%clk
00:01:05]} f5 {[%clk 00:00:41]} {[%emt 00:00:26]} 53. g3 {[%clk 00:00:43]}
{[%emt 00:00:27]} Rb1+ {[%clk 00:00:28]} {[%emt 00:00:18]} 54. Ke2 {[%clk
00:00:46]} {[%emt 00:00:03]} Rb2+ {[%clk 00:00:32]} {[%emt 00:00:01]} 55. Ke1
{[%clk 00:00:50]} Rb1+ {[%clk 00:00:34]} {[%emt 00:00:04]} 56. Ke2 {[%clk
00:00:53]} {[%emt 00:00:02]} Rb2+ {[%clk 00:00:38]} 57. Ke1 {[%clk 00:00:54]}
{[%emt 00:00:03]} Kf6 {[%clk 00:00:27]} {[%emt 00:00:16]} 58. Nd5+ {[%clk
00:00:49]} {[%emt 00:00:09]} Bxd5 {[%clk 00:00:22]} {[%emt 00:00:11]} 59. Rxd5
{[%clk 00:00:53]} {[%emt 00:00:02]} Ke6 {[%clk 00:00:17]} {[%emt 00:00:10]} 60.
Ra5 {[%clk 00:00:54]} {[%emt 00:00:04]} Kf6 {[%clk 00:00:20]} 61. Rc5 {[%clk
00:00:54]} {[%emt 00:00:04]} Ra2 {[%clk 00:00:21]} {[%emt 00:00:05]} 62. Rb5
{[%clk 00:00:56]} {[%emt 00:00:03]} Ke6 {[%clk 00:00:24]} {[%emt 00:00:02]} 63.
Rc5 {[%clk 00:00:59]} {[%emt 00:00:02]} Kf6 {[%clk 00:00:28]} 64. Rb5 {[%clk
00:01:03]} Kg6 {[%clk 00:00:32]} 65. Rc5 {[%clk 00:01:05]} {[%emt 00:00:03]}
Ra3 {[%clk 00:00:25]} {[%emt 00:00:12]} 66. Ke2 {[%clk 00:00:54]} {[%emt
00:00:16]} Ra2+ {[%clk 00:00:26]} {[%emt 00:00:04]} 67. Ke1 {[%clk 00:00:58]}
{[%emt 00:00:01]} Ra1+ {[%clk 00:00:30]} {[%emt 00:00:01]} 68. Ke2 {[%clk
00:01:02]} {[%emt 00:00:02]} Ra2+ {[%clk 00:00:34]} 69. Ke1 {[%clk 00:01:06]}
Ra3 {[%clk 00:00:38]} {[%emt 00:00:02]} 70. Ke2 {[%clk 00:01:08]} {[%emt
00:00:03]} Rf3 {[%emt 00:00:08]} 71. Ra5 {[%clk 00:01:04]} {[%emt 00:00:07]}
Kh5 {[%clk 00:00:31]} {[%emt 00:00:10]} 72. Ra8 {[%clk 00:00:57]} {[%emt
00:00:13]} Kg4 {[%clk 00:00:31]} {[%emt 00:00:06]} 73. Rh8 {[%clk 00:00:45]}
{[%emt 00:00:16]} e3 {[%clk 00:00:18]} {[%emt 00:00:19]} 74. fxe3 {[%clk
00:00:35]} {[%emt 00:00:14]} Rxg3 {[%clk 00:00:20]} {[%emt 00:00:04]} 75. Kf2
{[%clk 00:00:35]} {[%emt 00:00:04]} Rf3+ {[%clk 00:00:22]} {[%emt 00:00:03]} 76.
Ke2 {[%clk 00:00:38]} {[%emt 00:00:03]} Rh3 {[%clk 00:00:25]} 77. Rf8 {[%clk
00:00:37]} {[%emt 00:00:05]} Rh2+ {[%clk 00:00:29]} {[%emt 00:00:02]} 78. Kf1
{[%clk 00:00:37]} {[%emt 00:00:06]} Ra2 {[%clk 00:00:28]} {[%emt 00:00:06]} 79.
Rf7 {[%clk 00:00:27]} {[%emt 00:00:15]} f4 {[%clk 00:00:19]} {[%emt 00:00:15]}
80. exf4 {[%clk 00:00:21]} {[%emt 00:00:10]} gxf4 {[%clk 00:00:23]} 81. Rb7
{[%clk 00:00:17]} {[%emt 00:00:09]} Kg3 {[%clk 00:00:23]} {[%emt 00:00:06]} 82.
Rf7 {[%clk 00:00:08]} {[%emt 00:00:14]} Ra1+ {[%clk 00:00:22]} {[%emt
00:00:06]} 83. Ke2 {[%clk 00:00:12]} {[%emt 00:00:01]} Ra2+ {[%clk 00:00:27]}
84. Kf1 {[%clk 00:00:16]} Kf3 {[%clk 00:00:22]} {[%emt 00:00:09]} 85. Kg1
{[%clk 00:00:15]} {[%emt 00:00:06]} Ra1+ {[%clk 00:00:25]} {[%emt 00:00:03]} 86.
Kh2 {[%clk 00:00:19]} {[%emt 00:00:02]} Rf1 {[%clk 00:00:13]} {[%emt 00:00:15]}
87. Rf8 {[%clk 00:00:17]} {[%emt 00:00:08]} Rf2+ {[%clk 00:00:14]} {[%emt
00:00:04]} 88. Kg1 {[%clk 00:00:21]} {[%emt 00:00:01]} Rg2+ {[%clk 00:00:19]}
89. Kf1 {[%clk 00:00:20]} {[%emt 00:00:06]} Rf2+ {[%clk 00:00:23]} {[%emt
00:00:01]} 90. Kg1 {[%clk 00:00:23]} {[%emt 00:00:01]} Rg2+ {[%clk 00:00:22]}
{[%emt 00:00:05]} 91. Kf1 {[%clk 00:00:27]} {[%emt 00:00:02]} Rc2 {[%clk
00:00:26]} {[%emt 00:00:01]} 92. Kg1 {[%clk 00:00:29]} {[%emt 00:00:03]} Rc1+
{[%clk 00:00:30]} {[%emt 00:00:01]} 93. Kh2 {[%clk 00:00:33]} Rf1 {[%clk
00:00:33]} {[%emt 00:00:03]} 94. Rf7 {[%clk 00:00:36]} {[%emt 00:00:02]} Ke2
{[%clk 00:00:16]} {[%emt 00:00:23]} 95. Re7+ {[%clk 00:00:32]} {[%emt
00:00:08]} Kf2 {[%clk 00:00:19]} {[%emt 00:00:02]} 96. Ra7 {[%clk 00:00:22]}
{[%emt 00:00:16]} Re1 {[%clk 00:00:18]} {[%emt 00:00:06]} 97. Ra2+ {[%clk
00:00:06]} {[%emt 00:00:21]} Re2 {[%clk 00:00:19]} {[%emt 00:00:03]} 98. Ra1
{[%clk 00:00:10]} f3 {[%clk 00:00:12]} {[%emt 00:00:13]} 99. Kh3 {[%clk
00:00:10]} {[%emt 00:00:04]} Re1 {[%clk 00:00:12]} {[%emt 00:00:05]} 100. Ra3
{[%clk 00:00:07]} {[%emt 00:00:08]} Re3 {[%clk 00:00:09]} {[%emt 00:00:09]} 101.
Ra1 {[%clk 00:00:08]} {[%emt 00:00:03]} Re1 {[%clk 00:00:12]} {[%emt 00:00:02]}
102. Ra3 {[%clk 00:00:13]} {[%emt 00:00:01]} Ke2 {[%clk 00:00:10]} {[%emt
00:00:07]} 103. Ra2+ {[%clk 00:00:15]} {[%emt 00:00:03]} Ke3 {[%clk 00:00:12]}
{[%emt 00:00:03]} 104. Ra3+ {[%clk 00:00:19]} {[%emt 00:00:01]} Kf2 {[%clk
00:00:16]} {[%emt 00:00:01]} 105. Ra2+ {[%clk 00:00:16]} {[%emt 00:00:02]} Kf1
{[%clk 00:00:09]} {[%emt 00:00:18]} 106. Kg3 {[%clk 00:00:15]} {[%emt
00:00:05]} Re3 {[%clk 00:00:10]} {[%emt 00:00:04]} 107. Rf2+ {[%emt 00:00:08]}
1/2-1/2



[ePGN "0.1;DGT LiveChess/2.2.6"]

[Event "MČR juniorů a juniorek v rapid šachu 2024"]
[Site "Hotel Fit Fun, Harrachov, Czech Republic"]
[Date "2024.09.21"]
[Round "6.12"]
[White "Vyslysel Petr"]
[Black "Bezdek Tomas"]
[Result "0-1"]
[TimeControl "20+5"]
[WhiteFideId "23730277"]
[BlackFideId "23733551"]
[WhiteElo "1678"]
[BlackElo "1973"]

1. d4 {[%clk 00:20:08]} {[%emt 00:00:01]} e6 {[%clk 00:20:10]} 2. c4 {[%clk
00:20:10]} {[%emt 00:00:03]} Nf6 {[%clk 00:20:13]} 3. Nf3 {[%clk 00:20:13]}
{[%emt 00:00:02]} b6 {[%clk 00:20:18]} 4. a3 {[%clk 00:20:17]} {[%emt
00:00:03]} Bb7 {[%clk 00:20:14]} {[%emt 00:00:08]} 5. Nc3 {[%clk 00:20:20]}
{[%emt 00:00:02]} d5 {[%clk 00:20:11]} {[%emt 00:00:08]} 6. Bg5 {[%clk
00:20:19]} {[%emt 00:00:05]} h6 {[%clk 00:20:03]} {[%emt 00:00:13]} 7. Bh4
{[%clk 00:20:13]} {[%emt 00:00:11]} Be7 {[%clk 00:18:20]} {[%emt 00:01:48]} 8.
e3 {[%clk 00:20:06]} {[%emt 00:00:12]} Nbd7 {[%clk 00:18:18]} {[%emt 00:00:07]}
9. cxd5 {[%clk 00:19:58]} {[%emt 00:00:13]} exd5 {[%clk 00:18:19]} {[%emt
00:00:04]} 10. Bd3 {[%clk 00:19:59]} {[%emt 00:00:05]} Ne4 {[%clk 00:17:21]}
{[%emt 00:01:04]} 11. Bxe7 {[%clk 00:19:56]} {[%emt 00:00:08]} Qxe7 {[%clk
00:17:25]} 12. O-O {[%clk 00:19:49]} {[%emt 00:00:11]} O-O {[%clk 00:17:18]}
{[%emt 00:00:13]} 13. Rc1 {[%clk 00:18:34]} {[%emt 00:01:19]} a6 {[%clk
00:16:52]} {[%emt 00:00:32]} 14. Qb3 {[%clk 00:16:42]} {[%emt 00:01:57]} Qd6
{[%clk 00:15:58]} {[%emt 00:00:57]} 15. Rfd1 {[%clk 00:14:50]} {[%emt
00:01:57]} Rac8 {[%clk 00:15:36]} {[%emt 00:00:28]} 16. Nd2 {[%clk 00:11:18]}
{[%emt 00:03:37]} Nxc3 {[%clk 00:13:03]} {[%emt 00:02:38]} 17. Rxc3 {[%clk
00:09:54]} {[%emt 00:01:30]} c5 {[%clk 00:13:06]} {[%emt 00:00:02]} 18. dxc5
{[%clk 00:09:42]} {[%emt 00:00:16]} Nxc5 {[%clk 00:13:10]} {[%emt 00:00:02]} 19.
Qc2 {[%clk 00:09:45]} {[%emt 00:00:02]} d4 {[%clk 00:13:11]} {[%emt 00:00:04]}
20. exd4 {[%clk 00:06:36]} {[%emt 00:03:15]} Qxd4 {[%clk 00:13:08]} {[%emt
00:00:08]} 21. Nb3 {[%clk 00:05:23]} {[%emt 00:01:17]} Qg4 {[%clk 00:11:41]}
{[%emt 00:01:29]} 22. Bf1 {[%clk 00:03:24]} {[%emt 00:02:06]} Ne6 {[%clk
00:10:36]} {[%emt 00:01:10]} 23. Rxc8 {[%clk 00:00:46]} {[%emt 00:02:44]} Rxc8
{[%clk 00:10:34]} {[%emt 00:00:06]} 24. Qe2 {[%clk 00:00:49]} {[%emt 00:00:03]}
Qg6 {[%clk 00:09:30]} {[%emt 00:01:07]} 25. Qd3 {[%clk 00:00:46]} {[%emt
00:00:10]} Qf6 {[%clk 00:07:31]} {[%emt 00:02:04]} 26. Rd2 {[%clk 00:00:50]}
{[%emt 00:00:02]} Rd8 {[%clk 00:04:50]} {[%emt 00:02:44]} 27. Qe3 {[%clk
00:00:51]} {[%emt 00:00:06]} Rxd2 {[%clk 00:04:35]} {[%emt 00:00:20]} 28. Qxd2
{[%clk 00:00:54]} {[%emt 00:00:01]} Ng5 {[%clk 00:04:32]} {[%emt 00:00:07]} 29.
Qd4 {[%clk 00:00:31]} {[%emt 00:00:29]} Qg6 {[%clk 00:03:08]} {[%emt 00:01:30]}
30. Qd8+ {[%clk 00:00:22]} {[%emt 00:00:13]} Kh7 {[%clk 00:03:02]} {[%emt
00:00:10]} 31. Bd3 {[%clk 00:00:11]} {[%emt 00:00:17]} f5 {[%clk 00:02:52]}
{[%emt 00:00:15]} 32. Kf1 {[%clk 00:00:14]} {[%emt 00:00:02]} Bxg2+ {[%clk
00:02:46]} {[%emt 00:00:12]} 33. Ke2 {[%clk 00:00:18]} {[%emt 00:00:01]} Qe6+
{[%clk 00:02:25]} {[%emt 00:00:25]} 34. Kd2 {[%clk 00:00:22]} Be4 {[%clk
00:01:54]} {[%emt 00:00:36]} 35. Nd4 {[%clk 00:00:14]} {[%emt 00:00:13]} Qe5
{[%clk 00:01:35]} {[%emt 00:00:23]} 36. Nxf5 {[%clk 00:00:11]} {[%emt
00:00:08]} Bxf5 {[%clk 00:01:23]} {[%emt 00:00:18]} 0-1



[ePGN "0.1;DGT LiveChess/2.2.6"]